[Event "Titled Tuesday Blitz March 01 Early 2022"]
[White "Batsiashvili, Nino"]
[Black "Sovetbekova, Nurai"]
[WhiteFideId "13602993"]
[BlackFideId "13801910"]
[WhiteElo "2230"]
[BlackElo "1545"]
[Result "1-0"]
[Round "08"]
[TimeControl "180+1"]
[Date "2022.03.01"]
[WhiteClock "0:00:06"]
[BlackClock "0:00:02"]

1. d4 {[%clk 0:03:00]}  Nf6 {[%clk 0:02:59]} 2. c4 {[%clk 0:03:00]}  g6 {[%clk 0:02:59]} 3. Nc3 {[%clk 0:03:00]}  d5 {[%clk 0:02:59]} 4. cxd5 {[%clk 0:02:59]}  Nxd5 {[%clk 0:03:00]} 5. e4 {[%clk 0:03:00]}  Nxc3 {[%clk 0:03:00]} 6. bxc3 {[%clk 0:03:01]}  Bg7 {[%clk 0:03:01]} 7. Nf3 {[%clk 0:03:01]}  c5 {[%clk 0:03:01]} 8. h3 {[%clk 0:03:01]}  Nc6 {[%clk 0:02:53]} 9. Be3 {[%clk 0:03:00]}  Qa5 {[%clk 0:02:40]} 10. Bd2 {[%clk 0:02:40]}  Qc7 {[%clk 0:02:26]} 11. d5 {[%clk 0:02:38]}  Ne5 {[%clk 0:02:24]} 12. Nxe5 {[%clk 0:02:29]}  Bxe5 {[%clk 0:02:22]} 13. Bb5+ {[%clk 0:02:29]}  Bd7 {[%clk 0:02:14]} 14. Bxd7+ {[%clk 0:02:29]}  Qxd7 {[%clk 0:02:11]} 15. f4 {[%clk 0:02:28]}  Bf6 {[%clk 0:02:09]} 16. e5 {[%clk 0:02:23]}  Bh4+ {[%clk 0:02:08]} 17. Kf1 {[%clk 0:02:10]}  Qxd5 {[%clk 0:02:06]} 18. Qa4+ {[%clk 0:01:22]}  Kf8 {[%clk 0:01:54]} 19. Qc2 {[%clk 0:01:16]}  Rd8 {[%clk 0:01:39]} 20. Be3 {[%clk 0:01:15]}  Qc4+ {[%clk 0:01:33]} 21. Kg1 {[%clk 0:01:13]}  Rd3 {[%clk 0:01:24]} 22. Bf2 {[%clk 0:00:33]}  Rxc3 {[%clk 0:01:08]} 23. Qd2 {[%clk 0:00:26]}  Rc2 {[%clk 0:00:52]} 24. Qxc2 {[%clk 0:00:23]}  Qxc2 {[%clk 0:00:48]} 25. Bxh4 {[%clk 0:00:23]}  Qe4 {[%clk 0:00:35]} 26. Rf1 {[%clk 0:00:23]}  c4 {[%clk 0:00:22]} 27. Kh2 {[%clk 0:00:17]}  c3 {[%clk 0:00:20]} 28. Rf3 {[%clk 0:00:17]}  c2 {[%clk 0:00:13]} 29. Rc1 {[%clk 0:00:17]}  Kg7 {[%clk 0:00:12]} 30. Bxe7 {[%clk 0:00:16]}  Rc8 {[%clk 0:00:10]} 31. Kg3 {[%clk 0:00:09]}  Rc4 {[%clk 0:00:10]} 32. Bf6+ {[%clk 0:00:07]}  Kg8 {[%clk 0:00:05]} 33. Kh2 {[%clk 0:00:07]}  h6 {[%clk 0:00:03]} 34. h4 {[%clk 0:00:07]}  g5 {[%clk 0:00:02]} 35. hxg5 {[%clk 0:00:07]}  hxg5 {[%clk 0:00:03]} 36. Bxg5 {[%clk 0:00:08]}  Rd4 {[%clk 0:00:03]} 37. Rg3 {[%clk 0:00:07]}  Kf8 {[%clk 0:00:02]} 38. Bf6 {[%clk 0:00:06]}  Rd1 {[%clk 0:00:02]} 39. Rxc2 {[%clk 0:00:06]}  Qxc2 {[%clk 0:00:02]} 40. Rh3 {[%clk 0:00:06]}  Qf5 {[%clk 0:00:02]} 41. Rh8# {[%clk 0:00:06]} 1-0


[Site "https://www.chess.com"]

[Event "Titled Tuesday Blitz March 01 Early 2022"]
[White "Bilan, Danila"]
[Black "Maltsevskaya, Aleksandra"]
[WhiteFideId "24161918"]
[BlackFideId "24174041"]
[WhiteElo "2164"]
[BlackElo "2283"]
[Result "0-1"]
[Round "08"]
[TimeControl "180+1"]
[Date "2022.03.01"]
[WhiteClock "0:00:03"]
[BlackClock "0:00:04"]

1. d4 {[%clk 0:03:00]}  Nf6 {[%clk 0:02:55]} 2. Nf3 {[%clk 0:02:59]}  g6 {[%clk 0:02:55]} 3. Bg5 {[%clk 0:02:58]}  Bg7 {[%clk 0:02:55]} 4. c3 {[%clk 0:02:59]}  O-O {[%clk 0:02:53]} 5. Nbd2 {[%clk 0:02:59]}  d6 {[%clk 0:02:53]} 6. e4 {[%clk 0:02:59]}  Nbd7 {[%clk 0:02:53]} 7. Be2 {[%clk 0:02:59]}  e5 {[%clk 0:02:54]} 8. dxe5 {[%clk 0:02:59]}  dxe5 {[%clk 0:02:55]} 9. O-O {[%clk 0:03:00]}  Qe7 {[%clk 0:02:55]} 10. Qc2 {[%clk 0:02:59]}  c6 {[%clk 0:02:54]} 11. a4 {[%clk 0:02:58]}  h6 {[%clk 0:02:54]} 12. Bh4 {[%clk 0:02:58]}  Re8 {[%clk 0:02:43]} 13. Rfe1 {[%clk 0:02:52]}  Nf8 {[%clk 0:02:25]} 14. Bc4 {[%clk 0:02:48]}  g5 {[%clk 0:02:24]} 15. Bg3 {[%clk 0:02:48]}  Ng6 {[%clk 0:02:24]} 16. a5 {[%clk 0:02:44]}  g4 {[%clk 0:02:16]} 17. Nh4 {[%clk 0:02:34]}  Be6 {[%clk 0:02:06]} 18. Bxe6 {[%clk 0:02:25]}  Qxe6 {[%clk 0:02:02]} 19. Nf5 {[%clk 0:02:06]}  Rad8 {[%clk 0:02:01]} 20. Rad1 {[%clk 0:02:00]}  h5 {[%clk 0:01:59]} 21. Nf1 {[%clk 0:01:37]}  Bf8 {[%clk 0:01:50]} 22. N1e3 {[%clk 0:01:20]}  Bc5 {[%clk 0:01:38]} 23. Rxd8 {[%clk 0:01:19]}  Rxd8 {[%clk 0:01:38]} 24. Rd1 {[%clk 0:01:19]}  Rxd1+ {[%clk 0:01:36]} 25. Qxd1 {[%clk 0:01:15]}  Nxe4 {[%clk 0:01:33]} 26. Qd8+ {[%clk 0:01:07]}  Bf8 {[%clk 0:01:32]} 27. h3 {[%clk 0:00:28]}  gxh3 {[%clk 0:01:26]} 28. gxh3 {[%clk 0:00:25]}  Qa2 {[%clk 0:01:13]} 29. Qd3 {[%clk 0:00:04]}  Nxg3 {[%clk 0:01:10]} 30. Nxg3 {[%clk 0:00:04]}  Qa1+ {[%clk 0:01:01]} 31. Kh2 {[%clk 0:00:04]}  Qe1 {[%clk 0:01:02]} 32. Qf5 {[%clk 0:00:02]}  Nf4 {[%clk 0:00:59]} 33. Ne4 {[%clk 0:00:02]}  Bg7 {[%clk 0:00:50]} 34. Qc8+ {[%clk 0:00:02]}  Kh7 {[%clk 0:00:50]} 35. Qf5+ {[%clk 0:00:03]}  Kh8 {[%clk 0:00:11]} 36. Qxf7 {[%clk 0:00:01]}  Qe2 {[%clk 0:00:06]} 37. Qf5 {[%clk 0:00:01]}  Qf3 {[%clk 0:00:05]} 38. Qc8+ {[%clk 0:00:01]}  Kh7 {[%clk 0:00:05]} 39. Qf5+ {[%clk 0:00:02]}  Kg8 {[%clk 0:00:06]} 40. Qc8+ {[%clk 0:00:02]}  Bf8 {[%clk 0:00:06]} 41. Qf5 {[%clk 0:00:02]}  Be7 {[%clk 0:00:02]} 42. Qc8+ {[%clk 0:00:01]}  Kf7 {[%clk 0:00:02]} 43. Qf5+ {[%clk 0:00:01]}  Ke8 {[%clk 0:00:03]} 44. Qh7 {[%clk 0:00:01]}  Kd8 {[%clk 0:00:03]} 45. Qf5 {[%clk 0:00:01]}  b6 {[%clk 0:00:02]} 46. b4 {[%clk 0:00:02]}  bxa5 {[%clk 0:00:03]} 47. bxa5 {[%clk 0:00:03]}  a6 {[%clk 0:00:03]} 48. Qh7 {[%clk 0:00:03]}  Qxh3+ {[%clk 0:00:03]} 49. Kg1 {[%clk 0:00:03]}  Ne2# {[%clk 0:00:04]} 0-1


[Site "https://www.chess.com"]

[Event "Titled Tuesday Blitz March 01 Early 2022"]
[White "Bintang, Rasyid A. Hidayat"]
[Black "Niyazgulova, Marina"]
[WhiteFideId "7105355"]
[BlackFideId "24142573"]
[WhiteElo "2372"]
[BlackElo "2075"]
[Result "0-1"]
[Round "08"]
[TimeControl "180+1"]
[Date "2022.03.01"]
[WhiteClock "0:01:02"]
[BlackClock "0:00:56"]

1. d4 {[%clk 0:03:00]}  d5 {[%clk 0:02:59]} 2. Bf4 {[%clk 0:03:00]}  Nf6 {[%clk 0:02:55]} 3. e3 {[%clk 0:03:00]}  c5 {[%clk 0:02:51]} 4. Nd2 {[%clk 0:03:00]}  Nc6 {[%clk 0:02:50]} 5. Ngf3 {[%clk 0:03:00]}  Bg4 {[%clk 0:02:44]} 6. Bb5 {[%clk 0:02:58]}  e6 {[%clk 0:02:43]} 7. O-O {[%clk 0:02:53]}  Bd6 {[%clk 0:02:41]} 8. dxc5 {[%clk 0:02:49]}  Bxc5 {[%clk 0:02:40]} 9. c4 {[%clk 0:02:49]}  O-O {[%clk 0:02:33]} 10. a3 {[%clk 0:02:42]}  a6 {[%clk 0:02:19]} 11. Bxc6 {[%clk 0:02:41]}  bxc6 {[%clk 0:02:19]} 12. b4 {[%clk 0:02:39]}  Bd6 {[%clk 0:02:18]} 13. Bxd6 {[%clk 0:02:26]}  Qxd6 {[%clk 0:02:17]} 14. c5 {[%clk 0:02:27]}  Qc7 {[%clk 0:02:16]} 15. h3 {[%clk 0:02:27]}  Bh5 {[%clk 0:02:07]} 16. Qa4 {[%clk 0:02:25]}  e5 {[%clk 0:02:04]} 17. g4 {[%clk 0:01:46]}  Bg6 {[%clk 0:02:01]} 18. Rfd1 {[%clk 0:01:29]}  h5 {[%clk 0:01:57]} 19. g5 {[%clk 0:01:28]}  Nd7 {[%clk 0:01:57]} 20. Nf1 {[%clk 0:01:26]}  e4 {[%clk 0:01:43]} 21. Nd4 {[%clk 0:01:24]}  Ne5 {[%clk 0:01:44]} 22. Nd2 {[%clk 0:01:16]}  Qe7 {[%clk 0:01:20]} 23. h4 {[%clk 0:01:11]}  Qd7 {[%clk 0:01:19]} 24. Nf1 {[%clk 0:01:06]}  Nf3+ {[%clk 0:00:58]} 25. Nxf3 {[%clk 0:01:03]}  exf3 {[%clk 0:00:58]} 26. Ng3 {[%clk 0:01:02]}  Qh3 {[%clk 0:00:56]} 0-1


[Site "https://www.chess.com"]

[Event "Titled Tuesday Blitz March 01 Early 2022"]
[White "Bodnaruk, Anastasia"]
[Black "Wagner, Dennis"]
[WhiteFideId "4181751"]
[BlackFideId "24650684"]
[WhiteElo "2393"]
[BlackElo "2355"]
[Result "0-1"]
[Round "08"]
[TimeControl "180+1"]
[Date "2022.03.01"]
[WhiteClock "0:00:11"]
[BlackClock "0:00:34"]

1. e4 {[%clk 0:02:54]}  c5 {[%clk 0:03:00]} 2. Nc3 {[%clk 0:02:54]}  d6 {[%clk 0:03:00]} 3. Nge2 {[%clk 0:02:51]}  Nf6 {[%clk 0:02:59]} 4. d4 {[%clk 0:02:51]}  cxd4 {[%clk 0:02:59]} 5. Nxd4 {[%clk 0:02:52]}  a6 {[%clk 0:03:00]} 6. h3 {[%clk 0:02:51]}  e5 {[%clk 0:03:00]} 7. Nde2 {[%clk 0:02:52]}  h5 {[%clk 0:02:59]} 8. g3 {[%clk 0:02:50]}  Be7 {[%clk 0:02:59]} 9. Bg2 {[%clk 0:02:50]}  b5 {[%clk 0:02:57]} 10. O-O {[%clk 0:02:45]}  Nbd7 {[%clk 0:02:50]} 11. Be3 {[%clk 0:02:43]}  Bb7 {[%clk 0:02:47]} 12. f4 {[%clk 0:02:40]}  Qc7 {[%clk 0:02:26]} 13. Nd5 {[%clk 0:02:13]}  Bxd5 {[%clk 0:02:10]} 14. exd5 {[%clk 0:02:13]}  Rc8 {[%clk 0:02:11]} 15. c3 {[%clk 0:02:03]}  Nb6 {[%clk 0:02:07]} 16. Qd3 {[%clk 0:01:36]}  Nc4 {[%clk 0:01:57]} 17. b3 {[%clk 0:01:29]}  Nxe3 {[%clk 0:01:54]} 18. Qxe3 {[%clk 0:01:29]}  O-O {[%clk 0:01:42]} 19. Kh2 {[%clk 0:01:09]}  Rfe8 {[%clk 0:01:41]} 20. f5 {[%clk 0:01:01]}  Qc5 {[%clk 0:01:27]} 21. Qd2 {[%clk 0:01:00]}  Bf8 {[%clk 0:01:18]} 22. Rad1 {[%clk 0:00:57]}  a5 {[%clk 0:01:13]} 23. Rf3 {[%clk 0:00:33]}  e4 {[%clk 0:01:10]} 24. Re3 {[%clk 0:00:34]}  Nxd5 {[%clk 0:00:58]} 25. Rxe4 {[%clk 0:00:28]}  Ne3 {[%clk 0:00:58]} 26. b4 {[%clk 0:00:18]}  Qa7 {[%clk 0:00:43]} 27. Re1 {[%clk 0:00:14]}  Nxg2 {[%clk 0:00:42]} 28. Rxe8 {[%clk 0:00:14]}  Nxe1 {[%clk 0:00:38]} 29. Rxf8+ {[%clk 0:00:11]}  Rxf8 {[%clk 0:00:34]} 0-1


[Site "https://www.chess.com"]

[Event "Titled Tuesday Blitz March 01 Early 2022"]
[White "Bogumil, Tatiana"]
[Black "Gatterer, Florian"]
[WhiteFideId "4110579"]
[BlackFideId "811688"]
[WhiteElo "1862"]
[BlackElo "2218"]
[Result "1-0"]
[Round "08"]
[TimeControl "180+1"]
[Date "2022.03.01"]
[WhiteClock "0:01:15"]
[BlackClock "0:00:04"]

1. Nf3 {[%clk 0:03:00]}  d5 {[%clk 0:02:57]} 2. c4 {[%clk 0:02:59]}  d4 {[%clk 0:02:57]} 3. g3 {[%clk 0:02:58]}  Nc6 {[%clk 0:02:55]} 4. Bg2 {[%clk 0:02:58]}  e5 {[%clk 0:02:55]} 5. d3 {[%clk 0:02:57]}  Nf6 {[%clk 0:02:55]} 6. O-O {[%clk 0:02:57]}  a5 {[%clk 0:02:54]} 7. b3 {[%clk 0:02:56]}  Bc5 {[%clk 0:02:50]} 8. Na3 {[%clk 0:02:54]}  O-O {[%clk 0:02:48]} 9. Nc2 {[%clk 0:02:51]}  Bg4 {[%clk 0:02:47]} 10. h3 {[%clk 0:02:50]}  Bh5 {[%clk 0:02:47]} 11. a3 {[%clk 0:02:44]}  e4 {[%clk 0:02:45]} 12. Bg5 {[%clk 0:02:39]}  exf3 {[%clk 0:02:43]} 13. exf3 {[%clk 0:02:12]}  h6 {[%clk 0:02:42]} 14. Bd2 {[%clk 0:02:10]}  Bg6 {[%clk 0:02:38]} 15. Bf4 {[%clk 0:02:08]}  Nh5 {[%clk 0:02:33]} 16. Bc1 {[%clk 0:02:06]}  Ne5 {[%clk 0:02:29]} 17. Ne1 {[%clk 0:02:05]}  Re8 {[%clk 0:02:15]} 18. f4 {[%clk 0:02:05]}  Nc6 {[%clk 0:02:15]} 19. Nf3 {[%clk 0:02:02]}  Nf6 {[%clk 0:02:05]} 20. g4 {[%clk 0:01:58]}  Nd7 {[%clk 0:01:54]} 21. f5 {[%clk 0:01:58]}  Bh7 {[%clk 0:01:53]} 22. Bf4 {[%clk 0:01:53]}  Bd6 {[%clk 0:01:53]} 23. Qd2 {[%clk 0:01:53]}  Bxf4 {[%clk 0:01:50]} 24. Qxf4 {[%clk 0:01:53]}  f6 {[%clk 0:01:50]} 25. Nxd4 {[%clk 0:01:53]}  Nxd4 {[%clk 0:01:49]} 26. Qxd4 {[%clk 0:01:54]}  Ne5 {[%clk 0:01:47]} 27. Bd5+ {[%clk 0:01:50]}  Kh8 {[%clk 0:01:43]} 28. f4 {[%clk 0:01:50]}  c6 {[%clk 0:01:37]} 29. fxe5 {[%clk 0:01:47]}  cxd5 {[%clk 0:01:23]} 30. e6 {[%clk 0:01:45]}  dxc4 {[%clk 0:01:17]} 31. Qxd8 {[%clk 0:01:44]}  Raxd8 {[%clk 0:01:10]} 32. dxc4 {[%clk 0:01:43]}  Rd3 {[%clk 0:01:10]} 33. Rab1 {[%clk 0:01:41]}  Rxh3 {[%clk 0:01:07]} 34. Kg2 {[%clk 0:01:41]}  Rc3 {[%clk 0:01:01]} 35. Rf3 {[%clk 0:01:39]}  Rxf3 {[%clk 0:00:36]} 36. Kxf3 {[%clk 0:01:38]}  g6 {[%clk 0:00:37]} 37. Ke4 {[%clk 0:01:38]}  Kg7 {[%clk 0:00:30]} 38. Rd1 {[%clk 0:01:36]}  Re7 {[%clk 0:00:27]} 39. Rd6 {[%clk 0:01:35]}  h5 {[%clk 0:00:25]} 40. Rd7 {[%clk 0:01:22]}  Kf8 {[%clk 0:00:24]} 41. gxh5 {[%clk 0:01:18]}  gxf5+ {[%clk 0:00:19]} 42. Kd5 {[%clk 0:01:18]}  f4 {[%clk 0:00:18]} 43. Rd8+ {[%clk 0:01:18]}  Kg7 {[%clk 0:00:18]} 44. Kd6 {[%clk 0:01:18]}  Rxe6+ {[%clk 0:00:09]} 45. Kxe6 {[%clk 0:01:17]}  f3 {[%clk 0:00:09]} 46. Rd2 {[%clk 0:01:16]}  Be4 {[%clk 0:00:08]} 47. h6+ {[%clk 0:01:15]}  Kxh6 {[%clk 0:00:08]} 48. Kxf6 {[%clk 0:01:15]}  Kh5 {[%clk 0:00:08]} 49. Ke5 {[%clk 0:01:16]}  Bc6 {[%clk 0:00:08]} 50. Kf4 {[%clk 0:01:16]}  Kg6 {[%clk 0:00:04]} 51. b4 {[%clk 0:01:16]}  axb4 {[%clk 0:00:04]} 52. axb4 {[%clk 0:01:16]}  b6 {[%clk 0:00:04]} 53. Ke3 {[%clk 0:01:15]}  Kf5 {[%clk 0:00:04]} 54. Rd6 {[%clk 0:01:15]} 1-0


[Site "https://www.chess.com"]

[Event "Titled Tuesday Blitz March 01 Early 2022"]
[White "Brodowski, Piotr"]
[Black "Yang, Kaiqi"]
[WhiteFideId "1124480"]
[BlackFideId "8604398"]
[WhiteElo "2422"]
[BlackElo "2373"]
[Result "1-0"]
[Round "08"]
[TimeControl "180+1"]
[Date "2022.03.01"]
[WhiteClock "0:00:26"]
[BlackClock "0:00:02"]

1. e4 {[%clk 0:02:54]}  c5 {[%clk 0:03:00]} 2. Nc3 {[%clk 0:02:52]}  Nc6 {[%clk 0:02:58]} 3. Bb5 {[%clk 0:02:52]}  Nd4 {[%clk 0:02:57]} 4. Nf3 {[%clk 0:02:52]}  e6 {[%clk 0:02:56]} 5. O-O {[%clk 0:02:33]}  Ne7 {[%clk 0:02:56]} 6. Nxd4 {[%clk 0:02:32]}  cxd4 {[%clk 0:02:56]} 7. Ne2 {[%clk 0:02:33]}  Qb6 {[%clk 0:02:54]} 8. Ba4 {[%clk 0:02:30]}  Ng6 {[%clk 0:02:48]} 9. d3 {[%clk 0:02:24]}  Be7 {[%clk 0:02:38]} 10. Kh1 {[%clk 0:02:16]}  O-O {[%clk 0:02:37]} 11. f4 {[%clk 0:02:16]}  f5 {[%clk 0:02:37]} 12. exf5 {[%clk 0:02:05]}  Rxf5 {[%clk 0:02:37]} 13. Ng3 {[%clk 0:02:05]}  Rf8 {[%clk 0:02:26]} 14. f5 {[%clk 0:01:57]}  Nh4 {[%clk 0:02:01]} 15. fxe6 {[%clk 0:01:47]}  Rxf1+ {[%clk 0:01:20]} 16. Qxf1 {[%clk 0:01:35]}  dxe6 {[%clk 0:01:20]} 17. Ne4 {[%clk 0:01:21]}  e5 {[%clk 0:01:10]} 18. Bg5 {[%clk 0:01:14]}  Qd8 {[%clk 0:00:21]} 19. Bb3+ {[%clk 0:01:08]}  Kh8 {[%clk 0:00:21]} 20. Qf7 {[%clk 0:00:48]}  Bxg5 {[%clk 0:00:13]} 21. Nxg5 {[%clk 0:00:48]}  h6 {[%clk 0:00:05]} 22. Rf1 {[%clk 0:00:40]}  Bf5 {[%clk 0:00:04]} 23. Qxf5 {[%clk 0:00:33]}  Nxf5 {[%clk 0:00:03]} 24. Nf7+ {[%clk 0:00:32]}  Kh7 {[%clk 0:00:02]} 25. Nxd8 {[%clk 0:00:33]}  Ne3 {[%clk 0:00:02]} 26. Rf8 {[%clk 0:00:33]}  Rc8 {[%clk 0:00:01]} 27. Ne6 {[%clk 0:00:27]}  Rc7 {[%clk 0:00:02]} 28. Nxc7 {[%clk 0:00:26]} 1-0


[Site "https://www.chess.com"]

[Event "Titled Tuesday Blitz March 01 Early 2022"]
[White "Butti, Enrique"]
[Black "Sinitsina, Anastassia"]
[WhiteFideId "3700470"]
[BlackFideId "4504640"]
[WhiteElo "2080"]
[BlackElo "2144"]
[Result "0-1"]
[Round "08"]
[TimeControl "180+1"]
[Date "2022.03.01"]
[WhiteClock "0:01:45"]
[BlackClock "0:01:14"]

1. d4 {[%clk 0:03:00]}  Nf6 {[%clk 0:02:59]} 2. Nf3 {[%clk 0:02:59]}  g6 {[%clk 0:03:00]} 3. c4 {[%clk 0:02:55]}  Bg7 {[%clk 0:03:00]} 4. Nc3 {[%clk 0:02:55]}  O-O {[%clk 0:03:00]} 5. Bg5 {[%clk 0:02:54]}  h6 {[%clk 0:02:59]} 6. Bh4 {[%clk 0:02:52]}  d6 {[%clk 0:02:59]} 7. e3 {[%clk 0:02:52]}  c5 {[%clk 0:02:59]} 8. Be2 {[%clk 0:02:50]}  Qb6 {[%clk 0:02:37]} 9. Qd2 {[%clk 0:02:47]}  Nbd7 {[%clk 0:02:30]} 10. O-O {[%clk 0:02:42]}  Re8 {[%clk 0:02:26]} 11. Rab1 {[%clk 0:02:37]}  Qa5 {[%clk 0:02:17]} 12. Rfd1 {[%clk 0:02:32]}  Nf8 {[%clk 0:02:12]} 13. Bxf6 {[%clk 0:02:27]}  Bxf6 {[%clk 0:02:02]} 14. Nd5 {[%clk 0:02:26]}  Qxd2 {[%clk 0:02:02]} 15. Nxf6+ {[%clk 0:02:26]}  exf6 {[%clk 0:02:03]} 16. Rxd2 {[%clk 0:02:25]}  Bf5 {[%clk 0:02:03]} 17. Rbd1 {[%clk 0:02:24]}  Rac8 {[%clk 0:01:51]} 18. dxc5 {[%clk 0:02:19]}  dxc5 {[%clk 0:01:50]} 19. b3 {[%clk 0:02:16]}  Be4 {[%clk 0:01:45]} 20. Ne1 {[%clk 0:02:14]}  f5 {[%clk 0:01:40]} 21. Bf3 {[%clk 0:02:14]}  Ne6 {[%clk 0:01:27]} 22. Rd7 {[%clk 0:02:08]}  Red8 {[%clk 0:01:24]} 23. Rxd8+ {[%clk 0:01:53]}  Rxd8 {[%clk 0:01:22]} 24. Rxd8+ {[%clk 0:01:52]}  Nxd8 {[%clk 0:01:22]} 25. Kf1 {[%clk 0:01:53]}  Kf8 {[%clk 0:01:22]} 26. Ke2 {[%clk 0:01:52]}  Bb1 {[%clk 0:01:20]} 27. a3 {[%clk 0:01:45]}  Ba2 {[%clk 0:01:14]} 0-1


[Site "https://www.chess.com"]

[Event "Titled Tuesday Blitz March 01 Early 2022"]
[White "Clawitter, Craig"]
[Black "Winkels, Marcel"]
[WhiteFideId "2023105"]
[BlackFideId "1003887"]
[WhiteElo "2223"]
[BlackElo "1900"]
[Result "1-0"]
[Round "08"]
[TimeControl "180+1"]
[Date "2022.03.01"]
[WhiteClock "0:00:07"]
[BlackClock "0:00:01"]

1. e4 {[%clk 0:03:00]}  g6 {[%clk 0:02:57]} 2. d4 {[%clk 0:03:00]}  Bg7 {[%clk 0:02:57]} 3. Nc3 {[%clk 0:03:00]}  d5 {[%clk 0:02:57]} 4. exd5 {[%clk 0:02:58]}  Nf6 {[%clk 0:02:56]} 5. Bb5+ {[%clk 0:02:55]}  Bd7 {[%clk 0:02:42]} 6. Bc4 {[%clk 0:02:49]}  O-O {[%clk 0:02:39]} 7. Nf3 {[%clk 0:02:36]}  Bg4 {[%clk 0:02:37]} 8. h3 {[%clk 0:02:36]}  Bxf3 {[%clk 0:02:33]} 9. Qxf3 {[%clk 0:02:37]}  Nbd7 {[%clk 0:02:34]} 10. O-O {[%clk 0:02:32]}  Nb6 {[%clk 0:02:33]} 11. Bb3 {[%clk 0:02:32]}  a5 {[%clk 0:02:32]} 12. a4 {[%clk 0:02:22]}  Qd7 {[%clk 0:02:31]} 13. Re1 {[%clk 0:02:08]}  Rfe8 {[%clk 0:02:29]} 14. Bd2 {[%clk 0:01:57]}  Rad8 {[%clk 0:02:27]} 15. Nb5 {[%clk 0:01:47]}  Nbxd5 {[%clk 0:02:20]} 16. Bxa5 {[%clk 0:01:43]}  b6 {[%clk 0:02:15]} 17. Bd2 {[%clk 0:01:40]}  c6 {[%clk 0:02:01]} 18. Na3 {[%clk 0:01:20]}  Nc7 {[%clk 0:01:45]} 19. c3 {[%clk 0:01:08]}  e5 {[%clk 0:01:40]} 20. Bg5 {[%clk 0:01:05]}  e4 {[%clk 0:01:23]} 21. Qg3 {[%clk 0:00:38]}  Ncd5 {[%clk 0:01:11]} 22. Nc4 {[%clk 0:00:37]}  Nh5 {[%clk 0:01:04]} 23. Qh4 {[%clk 0:00:26]}  f6 {[%clk 0:01:02]} 24. Bd2 {[%clk 0:00:19]}  Bf8 {[%clk 0:00:50]} 25. Nxb6 {[%clk 0:00:15]}  Qe7 {[%clk 0:00:33]} 26. Nxd5 {[%clk 0:00:12]}  cxd5 {[%clk 0:00:32]} 27. a5 {[%clk 0:00:12]}  Ng7 {[%clk 0:00:28]} 28. a6 {[%clk 0:00:10]}  Nf5 {[%clk 0:00:28]} 29. Qg4 {[%clk 0:00:09]}  Qa7 {[%clk 0:00:19]} 30. Bf4 {[%clk 0:00:08]}  Re6 {[%clk 0:00:17]} 31. Ra5 {[%clk 0:00:06]}  Rxa6 {[%clk 0:00:16]} 32. Rxd5 {[%clk 0:00:05]}  Rxd5 {[%clk 0:00:14]} 33. Bxd5+ {[%clk 0:00:06]}  Kh8 {[%clk 0:00:14]} 34. Bxe4 {[%clk 0:00:07]}  Nd6 {[%clk 0:00:12]} 35. Qe6 {[%clk 0:00:06]}  Qe7 {[%clk 0:00:10]} 36. Qxe7 {[%clk 0:00:06]}  Bxe7 {[%clk 0:00:10]} 37. Bd3 {[%clk 0:00:07]}  Ra7 {[%clk 0:00:08]} 38. Bxd6 {[%clk 0:00:07]}  Bxd6 {[%clk 0:00:07]} 39. Re6 {[%clk 0:00:08]}  Bf8 {[%clk 0:00:06]} 40. b4 {[%clk 0:00:08]}  Rc7 {[%clk 0:00:05]} 41. b5 {[%clk 0:00:07]}  Rxc3 {[%clk 0:00:04]} 42. Re8 {[%clk 0:00:07]}  Kg7 {[%clk 0:00:04]} 43. Be4 {[%clk 0:00:08]}  Rb3 {[%clk 0:00:02]} 44. Bc6 {[%clk 0:00:07]}  Bd6 {[%clk 0:00:01]} 45. g3 {[%clk 0:00:07]} 1-0


[Site "https://www.chess.com"]

[Event "Titled Tuesday Blitz March 01 Early 2022"]
[White "Cori T., Deysi"]
[Black "Kukula, Pawel"]
[WhiteFideId "3801934"]
[BlackFideId "1115081"]
[WhiteElo "2350"]
[BlackElo "2203"]
[Result "1-0"]
[Round "08"]
[TimeControl "180+1"]
[Date "2022.03.01"]
[WhiteClock "0:01:02"]
[BlackClock "0:00:50"]

1. d4 {[%clk 0:03:00]}  e6 {[%clk 0:02:53]} 2. Nf3 {[%clk 0:03:00]}  f5 {[%clk 0:02:53]} 3. c4 {[%clk 0:02:56]}  Nf6 {[%clk 0:02:51]} 4. e3 {[%clk 0:02:56]}  g6 {[%clk 0:02:51]} 5. Bd3 {[%clk 0:02:57]}  Bg7 {[%clk 0:02:51]} 6. b4 {[%clk 0:02:56]}  O-O {[%clk 0:02:49]} 7. Qb3 {[%clk 0:02:57]}  Kh8 {[%clk 0:02:49]} 8. Nc3 {[%clk 0:02:57]}  d6 {[%clk 0:02:49]} 9. c5 {[%clk 0:02:56]}  Qe7 {[%clk 0:02:49]} 10. Bb2 {[%clk 0:02:56]}  b6 {[%clk 0:02:46]} 11. d5 {[%clk 0:02:54]}  e5 {[%clk 0:02:46]} 12. Be2 {[%clk 0:02:53]}  Nbd7 {[%clk 0:02:43]} 13. c6 {[%clk 0:02:52]}  Nb8 {[%clk 0:02:40]} 14. b5 {[%clk 0:02:52]}  a6 {[%clk 0:02:24]} 15. a4 {[%clk 0:02:51]}  h6 {[%clk 0:02:23]} 16. h4 {[%clk 0:02:50]}  a5 {[%clk 0:02:20]} 17. O-O-O {[%clk 0:02:49]}  Ng4 {[%clk 0:02:17]} 18. Rdf1 {[%clk 0:02:48]}  f4 {[%clk 0:02:16]} 19. e4 {[%clk 0:02:48]}  h5 {[%clk 0:02:14]} 20. Ng5 {[%clk 0:02:43]}  Bh6 {[%clk 0:02:07]} 21. Nf3 {[%clk 0:02:38]}  Kh7 {[%clk 0:02:04]} 22. Nb1 {[%clk 0:02:38]}  Qf7 {[%clk 0:02:01]} 23. Nbd2 {[%clk 0:02:38]}  Qe7 {[%clk 0:02:01]} 24. Ba3 {[%clk 0:02:37]}  Qd8 {[%clk 0:01:59]} 25. Kc2 {[%clk 0:02:37]}  Qe7 {[%clk 0:02:00]} 26. Nc4 {[%clk 0:02:38]}  Na6 {[%clk 0:01:50]} 27. bxa6 {[%clk 0:02:21]}  Bxa6 {[%clk 0:01:51]} 28. Bd3 {[%clk 0:02:21]}  Rab8 {[%clk 0:01:32]} 29. Nb2 {[%clk 0:02:22]}  Bc8 {[%clk 0:01:30]} 30. Bb5 {[%clk 0:02:17]}  Kh8 {[%clk 0:01:27]} 31. Nd3 {[%clk 0:02:17]}  Bg7 {[%clk 0:01:23]} 32. Ng5 {[%clk 0:02:12]}  Bf6 {[%clk 0:01:21]} 33. Nf3 {[%clk 0:02:11]}  Bg7 {[%clk 0:01:21]} 34. Qc3 {[%clk 0:02:05]}  Rf7 {[%clk 0:01:20]} 35. Qd2 {[%clk 0:02:05]}  Rf8 {[%clk 0:01:20]} 36. Bc4 {[%clk 0:02:02]}  Rf7 {[%clk 0:01:20]} 37. Rb1 {[%clk 0:01:59]}  Rf8 {[%clk 0:01:21]} 38. Bb2 {[%clk 0:01:59]}  Bf6 {[%clk 0:01:17]} 39. Bc3 {[%clk 0:01:59]}  Kg7 {[%clk 0:01:17]} 40. Bxa5 {[%clk 0:01:33]}  Ra8 {[%clk 0:01:18]} 41. Bb4 {[%clk 0:01:34]}  Rxa4 {[%clk 0:01:17]} 42. Ra1 {[%clk 0:01:34]}  Rxa1 {[%clk 0:01:11]} 43. Rxa1 {[%clk 0:01:35]}  Bxh4 {[%clk 0:01:11]} 44. Ra7 {[%clk 0:01:29]}  Bf6 {[%clk 0:01:07]} 45. Nb2 {[%clk 0:01:17]}  g5 {[%clk 0:01:08]} 46. Nd1 {[%clk 0:01:15]}  Nh6 {[%clk 0:01:07]} 47. Nc3 {[%clk 0:01:15]}  g4 {[%clk 0:01:08]} 48. Ne1 {[%clk 0:01:16]}  Bg5 {[%clk 0:01:07]} 49. f3 {[%clk 0:01:15]}  h4 {[%clk 0:01:07]} 50. Nb5 {[%clk 0:01:12]}  h3 {[%clk 0:01:03]} 51. gxh3 {[%clk 0:01:13]}  gxh3 {[%clk 0:01:03]} 52. Rxc7 {[%clk 0:01:12]}  Qxc7 {[%clk 0:00:52]} 53. Nxc7 {[%clk 0:01:13]}  Rf6 {[%clk 0:00:52]} 54. Ne8+ {[%clk 0:01:12]}  Kg6 {[%clk 0:00:52]} 55. Nxf6 {[%clk 0:01:11]}  Kxf6 {[%clk 0:00:53]} 56. Bxd6 {[%clk 0:01:11]}  Bh4 {[%clk 0:00:51]} 57. Nd3 {[%clk 0:01:01]}  Nf7 {[%clk 0:00:51]} 58. Bxe5+ {[%clk 0:01:01]}  Nxe5 {[%clk 0:00:50]} 59. Qxf4+ {[%clk 0:01:02]} 1-0


[Site "https://www.chess.com"]